fUSD/lending_fUSD_20260617
["ID","MTS","AMOUNT","RATE_DAILY","PERIOD"]
[425246313,1781632306000,-227.497261,0.00033,7]
[425246315,1781632306000,-227.49726,0.00033,7]
[425246316,1781632306000,-339.484082,0.00033,7]
[425246317,1781632306000,-234.635032,0.00033,7]
[425246320,1781632306000,-339.484082,0.00033,7]
[425246321,1781632306000,-276.683965,0.00033,7]
[425246318,1781632306000,-339.484082,0.00033,7]
[425246356,1781632306000,-431.135298,0.00033,7]
[425246319,1781632306000,-234.635032,0.00033,7]
[425246322,1781632306000,-234.635026,0.00033,7]
[425246325,1781632306000,-151.0,0.00033,7]
[425246330,1781632306000,-294.481292,0.00033,7]
[425246328,1781632306000,-151.0,0.00033,7]
[425246327,1781632306000,-276.683969,0.00033,7]
[425246326,1781632306000,-276.683965,0.00033,7]
[425246324,1781632306000,-276.683965,0.00033,7]
[425246329,1781632306000,-294.481292,0.00033,7]
[425246323,1781632306000,-339.48407407,0.00033,7]
[425246331,1781632306000,-318.766613,0.00033,7]
[425246333,1781632306000,-151.0,0.00033,7]
[425246360,1781632306000,-431.135306,0.00033,7]
[425246352,1781632306000,-154.360703,0.00033,7]
[425246358,1781632306000,-431.135298,0.00033,7]
[425246383,1781632306000,-185.321464,0.00033,7]
[425246386,1781632306000,-185.321463,0.00033,7]
[425246387,1781632306000,-413.364487,0.00033,7]
[425246391,1781632306000,-151.0,0.00033,7]
[425246390,1781632306000,-413.364491,0.00033,7]
[425246389,1781632306000,-413.364487,0.00033,7]
[425246392,1781632306000,-151.0,0.00033,7]
[425246395,1781632306000,-151.0,0.00033,7]
[425246393,1781632306000,-151.0,0.00033,7]
[425246394,1781632306000,-151.0,0.00033,7]
[425246388,1781632306000,-413.364487,0.00033,7]
[425246397,1781632306000,-151.0,0.00033,7]
[425246399,1781632306000,-285.509618,0.00033,7]
[425246398,1781632306000,-285.509618,0.00033,7]
[425246400,1781632306000,-285.509618,0.00033,7]
[425246402,1781632306000,-285.509609,0.00033,7]
[425246401,1781632306000,-151.0,0.00033,7]
[425246407,1781632306000,-151.0,0.00033,7]
[425246405,1781632306000,-257.193721,0.00033,7]
[425246404,1781632306000,-151.0,0.00033,7]
[425246362,1781632306000,-151.0,0.00033,3]
[425246406,1781632306000,-265.166833,0.00033,7]
[425246396,1781632306000,-230.336609,0.00033,7]
[425246384,1781632306000,-185.321464,0.00033,7]
[425246403,1781632306000,-257.193721,0.00033,7]
[425246382,1781632306000,-295.776814,0.00033,7]
[425246385,1781632306000,-185.321464,0.00033,7]
[425246359,1781632306000,-154.360704,0.00033,7]
[425246364,1781632306000,-365.984958,0.00033,7]
[425246363,1781632306000,-151.0,0.00033,3]
[425246369,1781632306000,-151.0,0.00033,7]
[425246366,1781632306000,-151.0,0.00033,7]
[425246368,1781632306000,-365.984956,0.00033,7]
[425246367,1781632306000,-365.984958,0.00033,7]
[425246371,1781632306000,-355.712337,0.00033,7]
[425246370,1781632306000,-355.712337,0.00033,7]
[425246357,1781632306000,-154.360703,0.00033,7]
[425246372,1781632306000,-151.0,0.00033,7]
[425246365,1781632306000,-365.984958,0.00033,7]
[425246380,1781632306000,-295.776808,0.00033,7]
[425246379,1781632306000,-253.043718,0.00033,7]
[425246376,1781632306000,-355.712339,0.00033,7]
[425246375,1781632306000,-151.0,0.00033,7]
[425246381,1781632306000,-295.776808,0.00033,7]
[425246377,1781632306000,-151.0,0.00033,7]
[425246373,1781632306000,-212.354279,0.00033,7]
[425246374,1781632306000,-355.712337,0.00033,7]
[425246378,1781632306000,-295.776808,0.00033,7]
[425246434,1781632307000,-151.0,0.00033,7]
[425246435,1781632307000,-151.0,0.00033,7]
[425246436,1781632307000,-4000.0,0.00033,3]
[425246437,1781632307000,-730.0,0.00033011,8]
[425246438,1781632307000,-150.0,0.00033024,30]
[425246439,1781632307000,-150.0,0.00033024,30]
[425246433,1781632307000,-374.734966,0.00033,7]
[425246441,1781632307000,-150.0,0.00033024,30]
[425246440,1781632307000,-281.0,0.00033024,30]
[425246446,1781632307000,-179.21,0.00033029,2]
[425246443,1781632307000,-150.0,0.00033024,30]
[425246444,1781632307000,-158.0,0.00033024,30]
[425246445,1781632307000,-597.36,0.00033029,2]
[425246447,1781632307000,-377.0,0.00033033,2]
[425246448,1781632307000,-511.67721108,0.00033035,2]
[425246449,1781632307000,-346.0,0.0003304,30]
[425246450,1781632307000,-328.0,0.0003304,30]
[425246452,1781632307000,-438.0,0.0003304,30]
[425246431,1781632307000,-374.734968,0.00033,7]
[425246451,1781632307000,-792.0,0.0003304,30]
[425246442,1781632307000,-150.0,0.00033024,30]
[425246432,1781632307000,-374.734968,0.00033,7]
[425246419,1781632307000,-178.676286,0.00033,7]
[425246429,1781632307000,-151.0,0.00033,7]
[425246453,1781632307000,-418.0,0.00033041,30]
[425246408,1781632307000,-257.193721,0.00033,7]
[425246409,1781632307000,-209.511574,0.00033,7]
[425246410,1781632307000,-257.193717,0.00033,7]
[425246412,1781632307000,-303.471344,0.00033,7]
[425246411,1781632307000,-303.471344,0.00033,7]
[425246413,1781632307000,-159.216083,0.00033,7]
[425246414,1781632307000,-303.471344,0.00033,7]
[425246415,1781632307000,-159.216083,0.00033,7]
[425246417,1781632307000,-303.471354,0.00033,7]
[425246418,1781632307000,-159.216083,0.00033,7]
[425246416,1781632307000,-178.676286,0.00033,7]
[425246421,1781632307000,-178.676286,0.00033,7]
[425246427,1781632307000,-151.0,0.00033,7]
[425246420,1781632307000,-159.216084,0.00033,7]
[425246423,1781632307000,-198.238538,0.00033,7]
[425246422,1781632307000,-178.676283,0.00033,7]
[425246424,1781632307000,-198.238538,0.00033,7]
[425246425,1781632307000,-151.0,0.00033,7]
[425246426,1781632307000,-198.238538,0.00033,7]
[425246428,1781632307000,-198.238542,0.00033,7]
[425246430,1781632307000,-374.734968,0.00033,7]
[425246454,1781632307000,-418.0,0.00033041,30]
[425246493,1781632307000,-730.0,0.00033545,9]
[425246455,1781632307000,-304.0,0.00033041,30]
[425246484,1781632307000,-173.0,0.00033226,30]
[425246486,1781632307000,-150.333054,0.00033305,2]
[425246485,1781632307000,-500.0,0.00033229,25]
[425246487,1781632307000,-328.33938558,0.0003331,7]
[425246481,1781632307000,-2739.45,0.0003315,60]
[425246480,1781632307000,-387.0,0.0003313,10]
[425246488,1781632307000,-151.0,0.0003333,7]
[425246490,1781632307000,-878.67364007,0.00033448,7]
[425246497,1781632307000,-74295.32981393,0.000337,7]
[425246483,1781632307000,-565.15,0.00033194,7]
[425246495,1781632307000,-152.0,0.00033584,16]
[425246489,1781632307000,-2084.74,0.0003333,5]
[425246492,1781632307000,-410.0,0.00033496,2]
[425246494,1781632307000,-500.0,0.00033551,120]
[425246499,1781632307000,-743.905506,0.00033777,120]
[425246498,1781632307000,-325.1988527,0.0003375,7]
[425246500,1781632307000,-377.0,0.00033801,2]
[425246502,1781632307000,-150.0,0.00033815,2]
[425246501,1781632307000,-150.0,0.00033815,2]
[425246457,1781632307000,-2538.0,0.00033041,30]
[425246496,1781632307000,-2886.11,0.000337,30]
[425246482,1781632307000,-757.462203,0.00033177,120]
[425246491,1781632307000,-740.933395,0.00033477,120]
[425246479,1781632307000,-469.32240555,0.00033123,120]
[425246456,1781632307000,-1853.0,0.00033041,30]
[425246478,1781632307000,-481.69317973,0.00033123,120]
[425246462,1781632307000,-819.0,0.00033051,30]
[425246460,1781632307000,-1535.0,0.00033051,30]
[425246458,1781632307000,-2542.16820703,0.00033048,30]
[425246464,1781632307000,-150.0,0.0003308,2]
[425246465,1781632307000,-150.0,0.0003308,2]
[425246461,1781632307000,-335.0,0.00033051,30]
[425246463,1781632307000,-212.0,0.00033051,30]
[425246466,1781632307000,-150.0,0.0003308,2]
[425246467,1781632307000,-150.0,0.0003308,2]
[425246459,1781632307000,-502.0,0.00033051,30]
[425246468,1781632307000,-150.0,0.0003308,2]
[425246469,1781632307000,-150.0,0.0003308,2]
[425246474,1781632307000,-527.60371795,0.00033123,120]
[425246472,1781632307000,-500.0,0.00033123,120]
[425246476,1781632307000,-634.90506034,0.00033123,120]
[425246477,1781632307000,-196.29447307,0.00033123,120]
[425246475,1781632307000,-458.2192285,0.00033123,120]
[425246470,1781632307000,-150.0,0.00033091,120]
[425246471,1781632307000,-189.52332653,0.00033123,120]
[425246473,1781632307000,-359.95528034,0.00033123,120]
[425246534,1781632308000,-1233.98,0.00034,7]
[425246528,1781632308000,-315.06178872,0.000339,120]
[425246533,1781632308000,-279.01001,0.00034,120]
[425246532,1781632308000,-9380.0,0.00034,2]
[425246530,1781632308000,-161.36941318,0.000339,120]
[425246531,1781632308000,-2542.16820703,0.00033904,30]
[425246529,1781632308000,-1416.1462627,0.000339,120]
[425246535,1781632308000,-588.47,0.00034019,7]
[425246537,1781632308000,-328.0,0.0003404,30]
[425246536,1781632308000,-346.0,0.0003404,30]
[425246545,1781632308000,-502.0,0.00034051,30]
[425246538,1781632308000,-792.0,0.0003404,30]
[425246539,1781632308000,-438.0,0.0003404,30]
[425246544,1781632308000,-2538.0,0.00034041,30]
[425246548,1781632308000,-819.0,0.00034051,30]
[425246540,1781632308000,-418.0,0.00034041,30]
[425246542,1781632308000,-304.0,0.00034041,30]
[425246543,1781632308000,-1853.0,0.00034041,30]
[425246541,1781632308000,-418.0,0.00034041,30]
[425246547,1781632308000,-335.0,0.00034051,30]
[425246522,1781632308000,-397.71917115,0.000339,120]
[425246546,1781632308000,-1535.0,0.00034051,30]
[425246524,1781632308000,-1404.81176343,0.000339,120]
[425246507,1781632308000,-7815.0,0.00033862,10]
[425246526,1781632308000,-173.25366313,0.000339,120]
[425246554,1781632308000,-7362.94469573,0.00034134,2]
[425246503,1781632308000,-150.0,0.00033815,2]
[425246505,1781632308000,-150.0,0.00033815,2]
[425246506,1781632308000,-220.58890273,0.00033839,7]
[425246504,1781632308000,-150.0,0.00033815,2]
[425246508,1781632308000,-200.0,0.000339,13]
[425246509,1781632308000,-208.71599948,0.000339,120]
[425246516,1781632308000,-387.28659165,0.000339,120]
[425246515,1781632308000,-703.47784449,0.000339,120]
[425246511,1781632308000,-161.55800474,0.000339,120]
[425246512,1781632308000,-179.25244946,0.000339,120]
[425246517,1781632308000,-393.84337441,0.000339,120]
[425246510,1781632308000,-498.08186464,0.000339,120]
[425246514,1781632308000,-587.96712675,0.000339,120]
[425246513,1781632308000,-350.94364227,0.000339,120]
[425246518,1781632308000,-897.06807201,0.000339,120]
[425246521,1781632308000,-400.73050322,0.000339,120]
[425246519,1781632308000,-190.91066939,0.000339,120]
[425246520,1781632308000,-390.74924321,0.000339,120]
[425246523,1781632308000,-915.93030031,0.000339,120]
[425246527,1781632308000,-177.51975711,0.000339,120]
[425246525,1781632308000,-192.57435081,0.000339,120]
[425246552,1781632308000,-730.0,0.00034079,9]
[425246581,1781632308000,-300.0,0.00034285,2]
[425246551,1781632308000,-727.293589,0.00034078,120]
[425246599,1781632308000,-300.0,0.00034285,2]
[425246582,1781632308000,-300.0,0.00034285,2]
[425246579,1781632308000,-300.0,0.00034285,2]
[425246577,1781632308000,-300.0,0.00034285,2]
[425246580,1781632308000,-300.0,0.00034285,2]
[425246578,1781632308000,-300.0,0.00034285,2]
[425246584,1781632308000,-300.0,0.00034285,2]
[425246583,1781632308000,-1053.72634213,0.00034285,2]
[425246586,1781632308000,-1346.28541318,0.00034285,2]
[425246587,1781632308000,-300.0,0.00034285,2]
[425246588,1781632308000,-300.0,0.00034285,2]
[425246591,1781632308000,-300.0,0.00034285,2]
[425246596,1781632308000,-300.0,0.00034285,2]
[425246590,1781632308000,-300.0,0.00034285,2]
[425246589,1781632308000,-596.49358704,0.00034285,2]
[425246594,1781632308000,-300.0,0.00034285,2]
[425246592,1781632308000,-300.0,0.00034285,2]
[425246595,1781632308000,-453.6656999,0.00034285,2]
[425246597,1781632308000,-300.0,0.00034285,2]
[425246598,1781632308000,-300.0,0.00034285,2]
[425246553,1781632308000,-153.1566,0.00034111,2]
[425246585,1781632308000,-300.0,0.00034285,2]
[425246576,1781632308000,-300.0,0.00034285,2]
[425246593,1781632308000,-583.56884083,0.00034285,2]
[425246572,1781632308000,-596.49358704,0.00034285,2]
[425246573,1781632308000,-300.0,0.00034285,2]
[425246549,1781632308000,-212.0,0.00034051,30]
[425246550,1781632308000,-476.10443138,0.00034071,2]
[425246555,1781632308000,-1411.900556,0.00034134,2]
[425246558,1781632308000,-1466.7523,0.00034153,2]
[425246556,1781632308000,-1396.83280242,0.00034149,30]
[425246559,1781632308000,-2000.0,0.00034153,2]
[425246560,1781632308000,-10000.0,0.00034153,2]
[425246561,1781632308000,-150.0,0.0003419,2]
[425246557,1781632308000,-1284.826,0.00034153,2]
[425246562,1781632308000,-321.91814422,0.00034196,7]
[425246564,1781632308000,-300.0,0.00034219,30]
[425246565,1781632308000,-150.0,0.00034219,30]
[425246566,1781632308000,-300.0,0.00034219,30]
[425246568,1781632308000,-152.0,0.00034245,17]
[425246575,1781632308000,-300.0,0.00034285,2]
[425246569,1781632308000,-1734.78,0.00034276,2]
[425246567,1781632308000,-500.0,0.00034226,27]
[425246570,1781632308000,-175.33,0.00034276,120]
[425246574,1781632308000,-300.0,0.00034285,2]
[425246563,1781632308000,-365.13,0.00034212,120]
[425246571,1781632308000,-300.0,0.00034285,2]
[425246625,1781632309000,-303.27256053,0.00034285,2]
[425246615,1781632309000,-300.0,0.00034285,2]
[425246618,1781632309000,-300.0,0.00034285,2]
[425246616,1781632309000,-300.0,0.00034285,2]
[425246619,1781632309000,-300.0,0.00034285,2]
[425246624,1781632309000,-300.0,0.00034285,2]
[425246620,1781632309000,-536.0886118,0.00034285,2]
[425246621,1781632309000,-300.0,0.00034285,2]
[425246622,1781632309000,-300.0,0.00034285,2]
[425246614,1781632309000,-300.0,0.00034285,2]
[425246617,1781632309000,-300.0,0.00034285,2]
[425246609,1781632309000,-300.0,0.00034285,2]
[425246603,1781632309000,-300.0,0.00034285,2]
[425246613,1781632309000,-494.61116003,0.00034285,2]
[425246612,1781632309000,-300.0,0.00034285,2]
[425246610,1781632309000,-300.0,0.00034285,2]
[425246608,1781632309000,-300.0,0.00034285,2]
[425246607,1781632309000,-300.0,0.00034285,2]
[425246606,1781632309000,-300.0,0.00034285,2]
[425246601,1781632309000,-300.0,0.00034285,2]
[425246604,1781632309000,-300.0,0.00034285,2]
[425246605,1781632309000,-300.0,0.00034285,2]
[425246602,1781632309000,-300.0,0.00034285,2]
[425246600,1781632309000,-300.0,0.00034285,2]
[425246623,1781632309000,-302.97495936,0.00034285,2]
[425246611,1781632309000,-300.0,0.00034285,2]
[425246626,1781632309000,-301.74779532,0.00034285,2]
[425246634,1781632309000,-345.2942186,0.00034285,2]
[425246627,1781632309000,-300.0,0.00034285,2]
[425246628,1781632309000,-300.0,0.00034285,2]
[425246654,1781632309000,-583.56884083,0.00034285,2]
[425246653,1781632309000,-300.0,0.00034285,2]
[425246652,1781632309000,-300.0,0.00034285,2]
[425246647,1781632309000,-300.0,0.00034285,2]
[425246651,1781632309000,-300.0,0.00034285,2]
[425246649,1781632309000,-300.0,0.00034285,2]
[425246650,1781632309000,-596.49358704,0.00034285,2]
[425246646,1781632309000,-1346.28541318,0.00034285,2]
[425246642,1781632309000,-1357.06315742,0.00034285,2]
[425246639,1781632309000,-300.0,0.00034285,2]
[425246644,1781632309000,-300.0,0.00034285,2]
[425246645,1781632309000,-300.0,0.00034285,2]
[425246648,1781632309000,-300.0,0.00034285,2]
[425246641,1781632309000,-1541.73090488,0.00034285,2]
[425246629,1781632309000,-300.0,0.00034285,2]
[425246630,1781632309000,-300.0,0.00034285,2]
[425246643,1781632309000,-300.0,0.00034285,2]
[425246631,1781632309000,-300.0,0.00034285,2]
[425246633,1781632309000,-300.0,0.00034285,2]
[425246632,1781632309000,-300.0,0.00034285,2]
[425246635,1781632309000,-528.9427319,0.00034285,2]
[425246636,1781632309000,-868.04256557,0.00034285,2]
[425246637,1781632309000,-953.01887079,0.00034285,2]
[425246638,1781632309000,-1804.85423076,0.00034285,2]
[425246640,1781632309000,-300.0,0.00034285,2]
[425246676,1781632310000,-302.03216599,0.00034285,2]
[425246677,1781632310000,-300.0,0.00034285,2]
[425246675,1781632310000,-300.0,0.00034285,2]
[425246679,1781632310000,-367.97076321,0.00034285,2]
[425246678,1781632310000,-494.61116003,0.00034285,2]
[425246674,1781632310000,-300.0,0.00034285,2]
[425246680,1781632310000,-300.0,0.00034285,2]
[425246684,1781632310000,-300.0,0.00034285,2]
[425246682,1781632310000,-607.02265113,0.00034285,2]
[425246683,1781632310000,-300.0,0.00034285,2]
[425246686,1781632310000,-300.0,0.00034285,2]
[425246688,1781632310000,-300.0,0.00034285,2]
[425246685,1781632310000,-300.0,0.00034285,2]
[425246672,1781632310000,-300.0,0.00034285,2]
[425246681,1781632310000,-300.0,0.00034285,2]
[425246673,1781632310000,-300.0,0.00034285,2]
[425246655,1781632310000,-300.0,0.00034285,2]
[425246670,1781632310000,-300.0,0.00034285,2]
[425246687,1781632310000,-536.0886118,0.00034285,2]
[425246656,1781632310000,-453.6656999,0.00034285,2]
[425246658,1781632310000,-300.0,0.00034285,2]
[425246659,1781632310000,-300.0,0.00034285,2]
[425246657,1781632310000,-300.0,0.00034285,2]
[425246660,1781632310000,-300.0,0.00034285,2]
[425246661,1781632310000,-300.0,0.00034285,2]
[425246662,1781632310000,-300.0,0.00034285,2]
[425246663,1781632310000,-300.0,0.00034285,2]
[425246666,1781632310000,-646.99410714,0.00034285,2]
[425246665,1781632310000,-300.0,0.00034285,2]
[425246664,1781632310000,-300.0,0.00034285,2]
[425246667,1781632310000,-300.0,0.00034285,2]
[425246669,1781632310000,-300.0,0.00034285,2]
[425246671,1781632310000,-300.0,0.00034285,2]
[425246668,1781632310000,-300.0,0.00034285,2]
[425246690,1781632310000,-729.15388008,0.00034285,2]
[425246724,1781632310000,-513.27224443,0.00034285,2]
[425246691,1781632310000,-300.0,0.00034285,2]
[425246712,1781632310000,-1017.94666488,0.00034285,2]
[425246711,1781632310000,-300.0,0.00034285,2]
[425246714,1781632310000,-310.80968515,0.00034285,2]
[425246716,1781632310000,-300.0,0.00034285,2]
[425246713,1781632310000,-300.0,0.00034285,2]
[425246715,1781632310000,-300.0,0.00034285,2]
[425246717,1781632310000,-1346.28541318,0.00034285,2]
[425246719,1781632310000,-300.0,0.00034285,2]
[425246722,1781632310000,-300.0,0.00034285,2]
[425246723,1781632310000,-300.0,0.00034285,2]
[425246720,1781632310000,-300.0,0.00034285,2]
[425246721,1781632310000,-596.49358704,0.00034285,2]
[425246725,1781632310000,-300.0,0.00034285,2]
[425246726,1781632310000,-583.56884083,0.00034285,2]
[425246689,1781632310000,-314.71594017,0.00034285,2]
[425246710,1781632310000,-300.0,0.00034285,2]
[425246709,1781632310000,-1804.85423076,0.00034285,2]
[425246718,1781632310000,-300.0,0.00034285,2]
[425246705,1781632310000,-528.9427319,0.00034285,2]
[425246707,1781632310000,-868.04256557,0.00034285,2]
[425246695,1781632310000,-301.74779532,0.00034285,2]
[425246694,1781632310000,-300.7600897,0.00034285,2]
[425246693,1781632310000,-300.0,0.00034285,2]
[425246696,1781632310000,-300.0,0.00034285,2]
[425246698,1781632310000,-300.0,0.00034285,2]
[425246701,1781632310000,-300.0,0.00034285,2]
[425246699,1781632310000,-300.0,0.00034285,2]
[425246692,1781632310000,-302.97495936,0.00034285,2]
[425246700,1781632310000,-300.0,0.00034285,2]
[425246697,1781632310000,-350.5619272,0.00034285,2]
[425246702,1781632310000,-300.0,0.00034285,2]
[425246704,1781632310000,-345.2942186,0.00034285,2]
[425246706,1781632310000,-300.0,0.00034285,2]
[425246708,1781632310000,-953.01887079,0.00034285,2]
[425246703,1781632310000,-300.0,0.00034285,2]
[425246741,1781632311000,-500.0,0.00034291,60]
[425246744,1781632311000,-881.8282792,0.00034291,60]
[425246747,1781632311000,-500.0,0.00034291,60]
[425246748,1781632311000,-811.553492,0.00034291,60]
[425246749,1781632311000,-973.3654534,0.00034291,60]
[425246751,1781632311000,-500.0,0.00034291,60]
[425246750,1781632311000,-500.0,0.00034291,60]
[425246753,1781632311000,-500.0,0.00034291,60]
[425246761,1781632311000,-232.868795,0.00034291,60]
[425246755,1781632311000,-500.0,0.00034291,60]
[425246754,1781632311000,-500.0,0.00034291,60]
[425246760,1781632311000,-971.3738987,0.00034291,60]
[425246758,1781632311000,-525.0739224,0.00034291,60]
[425246757,1781632311000,-203.1069869,0.00034291,60]
[425246756,1781632311000,-500.0,0.00034291,60]
[425246752,1781632311000,-500.0,0.00034291,60]
[425246745,1781632311000,-228.3450927,0.00034291,60]
[425246759,1781632311000,-500.0,0.00034291,60]
[425246743,1781632311000,-500.0,0.00034291,60]
[425246727,1781632311000,-300.0,0.00034285,2]
[425246729,1781632311000,-300.0,0.00034285,2]
[425246728,1781632311000,-453.6656999,0.00034285,2]
[425246730,1781632311000,-300.0,0.00034285,2]
[425246731,1781632311000,-300.0,0.00034285,2]
[425246732,1781632311000,-300.0,0.00034285,2]
[425246734,1781632311000,-445.48672195,0.00034285,2]
[425246736,1781632311000,-300.0,0.00034285,2]
[425246739,1781632311000,-400.2979564,0.00034291,60]
[425246737,1781632311000,-1946.14,0.00034289,5]
[425246738,1781632311000,-271.8986181,0.00034291,60]
[425246735,1781632311000,-300.0,0.00034285,2]
[425246733,1781632311000,-300.0,0.00034285,2]
[425246740,1781632311000,-588.0342774,0.00034291,60]
[425246742,1781632311000,-500.0,0.00034291,60]
[425246746,1781632311000,-435.6044399,0.00034291,60]
[425246762,1781632311000,-247.0546176,0.00034291,60]
[425246776,1781632311000,-500.0,0.00034291,60]
[425246763,1781632311000,-500.0,0.00034291,60]
[425246784,1781632311000,-500.0,0.00034307,60]
[425246787,1781632311000,-638.191839,0.00034378,120]
[425246785,1781632311000,-700.0,0.00034307,60]
[425246788,1781632311000,-358.56878641,0.000344,60]
[425246786,1781632311000,-500.0,0.00034307,60]
[425246789,1781632311000,-369.71199633,0.00034444,30]
[425246791,1781632311000,-150.0,0.00034453,2]
[425246793,1781632311000,-500.0,0.00034453,2]
[425246795,1781632311000,-500.0,0.00034453,2]
[425246792,1781632311000,-150.0,0.00034453,2]
[425246794,1781632311000,-500.0,0.00034453,2]
[425246796,1781632311000,-150.0,0.00034453,2]
[425246798,1781632311000,-247.87536168,0.00034453,2]
[425246797,1781632311000,-150.0,0.00034453,2]
[425246764,1781632311000,-500.0,0.00034291,60]
[425246783,1781632311000,-599.91,0.000343,120]
[425246782,1781632311000,-1120.91740609,0.000343,120]
[425246790,1781632311000,-150.0,0.00034453,2]
[425246780,1781632311000,-250.0,0.00034291,7]
[425246781,1781632311000,-327.06,0.000343,120]
[425246765,1781632311000,-500.0,0.00034291,60]
[425246766,1781632311000,-500.0,0.00034291,60]
[425246767,1781632311000,-500.0,0.00034291,60]
[425246768,1781632311000,-500.0,0.00034291,60]
[425246769,1781632311000,-840.7536227,0.00034291,60]
[425246771,1781632311000,-209.375,0.00034291,60]
[425246773,1781632311000,-500.0,0.00034291,60]
[425246770,1781632311000,-868.1872232,0.00034291,60]
[425246775,1781632311000,-500.0,0.00034291,60]
[425246774,1781632311000,-500.0,0.00034291,60]
[425246799,1781632311000,-160.0140167,0.00034495,2]
[425246778,1781632311000,-250.0,0.00034291,7]
[425246779,1781632311000,-250.0,0.00034291,7]
[425246777,1781632311000,-871.7228566,0.00034291,60]
[425246772,1781632311000,-500.0,0.00034291,60]
[425246821,1781632312000,-150.0,0.0003455,2]
[425246823,1781632312000,-150.0,0.0003455,2]
[425246819,1781632312000,-213.09479466,0.00034535,14]
[425246828,1781632312000,-1000.0,0.00034569,2]
[425246829,1781632312000,-1000.0,0.00034569,2]
[425246826,1781632312000,-1000.0,0.00034569,2]
[425246822,1781632312000,-150.0,0.0003455,2]
[425246825,1781632312000,-1000.0,0.00034569,2]
[425246836,1781632312000,-694.776644,0.00034678,120]
[425246827,1781632312000,-1627.25,0.00034569,2]
[425246830,1781632312000,-1084.83,0.00034569,2]
[425246831,1781632312000,-377.0,0.00034569,2]
[425246833,1781632312000,-318.49410596,0.00034647,7]
[425246837,1781632312000,-26278.88316782,0.0003468,30]
[425246835,1781632312000,-4948.0911,0.0003465,2]
[425246818,1781632312000,-4948.0911,0.00034526,2]
[425246824,1781632312000,-1000.0,0.00034569,2]
[425246820,1781632312000,-150.0,0.0003455,2]
[425246804,1781632312000,-1272.7240492,0.00034506,2]
[425246816,1781632312000,-2930.4449,0.00034526,2]
[425246834,1781632312000,-2930.4449,0.0003465,2]
[425246803,1781632312000,-1516.81,0.000345,10]
[425246802,1781632312000,-1516.816,0.000345,30]
[425246800,1781632312000,-762.6608,0.000345,30]
[425246801,1781632312000,-1516.816,0.000345,30]
[425246805,1781632312000,-1569.36275957,0.00034506,7]
[425246806,1781632312000,-1278.60174747,0.00034506,7]
[425246817,1781632312000,-2044.6615,0.00034526,2]
[425246807,1781632312000,-1250.5072172,0.00034506,7]
[425246809,1781632312000,-1269.38885092,0.00034506,7]
[425246814,1781632312000,-1234.92729998,0.00034521,7]
[425246812,1781632312000,-1315.75079914,0.00034521,7]
[425246808,1781632312000,-1771.2354507,0.00034506,7]
[425246811,1781632312000,-2213.69273304,0.00034506,7]
[425246813,1781632312000,-1289.865614,0.00034521,7]
[425246815,1781632312000,-1250.74607198,0.00034521,7]
[425246810,1781632312000,-1315.9783921,0.00034506,7]